fUST/lending_fUST_20250319
["ID","MTS","AMOUNT","RATE_DAILY","PERIOD"]
[356359020,1742338018722,534.82775835,0.0004547,120]
[356359022,1742338033109,-160.53246295,8.136e-05,2]
[356359023,1742338033132,-300.0,8.218e-05,2]
[356359024,1742338033154,-443.57947764,8.219e-05,2]
[356359031,1742338094128,500.0,0.0004547,120]
[356359032,1742338094400,500.0,0.0004547,120]
[356359033,1742338094631,500.0,0.0004547,120]
[356359034,1742338094891,500.0,0.0004547,120]
[356359035,1742338095150,500.0,0.0004547,120]
[356359036,1742338095431,559.15993608,0.0004547,120]
[356359037,1742338221220,1000.0,0.0004547,120]
[356359076,1742338232297,-500.0,8.219e-05,2]
[356359078,1742338232307,-500.0,8.373e-05,2]
[356359080,1742338232316,-321.33694823,8.373e-05,2]
[356359082,1742338232326,-508.06633437,8.373e-05,2]
[356359084,1742338232335,-500.0,8.373e-05,2]
[356359086,1742338232344,-553.37613027,8.373e-05,2]
[356359088,1742338232354,-500.0,8.373e-05,2]
[356359090,1742338232363,-500.0,8.373e-05,2]
[356359092,1742338232373,-500.0,8.373e-05,2]
[356359094,1742338232383,-500.0,8.373e-05,2]
[356359096,1742338232396,-500.0,8.373e-05,2]
[356359098,1742338232405,-500.0,8.373e-05,2]
[356359100,1742338232414,-401.95150697,8.373e-05,2]
[356359102,1742338232424,-500.0,8.373e-05,2]
[356359104,1742338232434,-500.0,8.373e-05,2]
[356359106,1742338232443,-500.0,8.373e-05,2]
[356359108,1742338232453,-500.0,8.373e-05,2]
[356359110,1742338232462,-500.0,8.373e-05,2]
[356359112,1742338232471,-172.58418572,8.373e-05,2]
[356359114,1742338232480,-500.0,8.373e-05,2]
[356359116,1742338232490,-500.0,8.373e-05,2]
[356359118,1742338232499,-500.0,8.373e-05,2]
[356359120,1742338232508,-500.0,8.373e-05,2]
[356359123,1742338232518,-500.0,8.373e-05,2]
[356359125,1742338232529,-500.0,8.373e-05,2]
[356359127,1742338232538,-500.0,8.391e-05,2]
[356359129,1742338232549,-500.0,8.392e-05,2]
[356359130,1742338232559,-287.58781647,8.392e-05,2]
[356359132,1742338232568,-500.0,8.392e-05,2]
[356359134,1742338232577,-159.58505571,8.392e-05,2]
[356359136,1742338232586,-500.0,8.392e-05,2]
[356359138,1742338232596,-355.38306911,8.392e-05,2]
[356359140,1742338232606,-500.0,8.392e-05,2]
[356359142,1742338232615,-225.94430096,8.392e-05,2]
[356359144,1742338232625,-422.87284579,8.392e-05,2]
[356359146,1742338232635,-500.0,8.392e-05,2]
[356359148,1742338232644,-500.0,8.392e-05,2]
[356359150,1742338232653,-500.0,8.392e-05,2]
[356359152,1742338232663,-500.0,8.392e-05,2]
[356359154,1742338232672,-500.0,8.392e-05,2]
[356359156,1742338232682,-329.91621361,8.392e-05,2]
[356359158,1742338232691,-275.38284081,8.393e-05,2]
[356359159,1742338232700,-77545.9395984,8.393e-05,2]
[356359160,1742338232712,-568.91313695,8.393e-05,2]
[356359161,1742338236723,750.0,0.0004547,30]
[356359179,1742338237963,-579.554999,8.393e-05,2]
[356359190,1742338238133,-1015.9999994,8.393e-05,2]
[356359268,1742338243158,-5074.01115556,8.393e-05,2]
[356359290,1742338532167,500.0,0.00045461,120]
[356359291,1742338532458,500.0,0.00045461,120]
[356359292,1742338532724,500.0,0.00045461,120]
[356359293,1742338532970,500.0,0.00045461,120]
[356359294,1742338533225,500.0,0.00045461,120]
[356359295,1742338533482,500.0,0.00045461,120]
[356359296,1742338533724,500.0,0.00045461,120]
[356359297,1742338533975,500.0,0.00045461,120]
[356359298,1742338534235,500.0,0.00045461,120]
[356359299,1742338534497,500.0,0.00045461,120]
[356359300,1742338534742,500.0,0.00045461,120]
[356359301,1742338535015,500.0,0.00045461,120]
[356359302,1742338535265,500.0,0.00045461,120]
[356359303,1742338535520,500.0,0.00045461,120]
[356359304,1742338535762,500.0,0.00045461,120]
[356359305,1742338536008,419.15857203,0.00045461,120]
[356359308,1742338775920,5000.0,0.00045461,30]
[356359309,1742338788606,5000.0,0.00045461,30]
[356359310,1742338788763,2000.0,0.00045461,120]
[356359311,1742338847250,11860.03284588,0.00045468,30]
[356359312,1742339079507,2000.0,0.00045468,120]
[356359313,1742339248121,-899.05016717,8.248e-05,2]
[356359363,1742339438132,-4876.02239037,8.248e-05,2]
[356359368,1742339438173,-862.04420907,8.248e-05,2]
[356359375,1742339438475,-731.61908029,8.248e-05,2]
[356359376,1742339438490,-275.4591959,8.248e-05,2]
[356359377,1742339438499,-300.0,8.665e-05,2]
[356359378,1742339438509,-915.59098408,8.666e-05,2]
[356359387,1742339440524,-1856.84192456,8.666e-05,2]
[356359388,1742339440536,-1363.14015772,8.666e-05,2]
[356359389,1742339440548,-420.87043536,8.666e-05,2]
[356359439,1742339443565,-781.24732668,8.666e-05,2]
[356359440,1742339443575,-367.19920012,8.746e-05,2]
[356359455,1742339446518,-31.80079988,8.746e-05,2]
[356359456,1742339446528,-190.63684719,8.767e-05,2]
[356359457,1742339446538,-500.0,8.767e-05,2]
[356359458,1742339446548,-500.0,8.767e-05,2]
[356359460,1742339446558,-500.0,8.767e-05,2]
[356359462,1742339446567,-500.0,8.767e-05,2]
[356359463,1742339446577,-500.0,8.767e-05,2]
[356359464,1742339446587,-500.0,8.767e-05,2]
[356359465,1742339446596,-1913.0,8.907e-05,2]
[356359466,1742339446605,-457.2651349,9.038e-05,2]
[356359467,1742339446614,-500.0,9.041e-05,2]
[356359468,1742339446623,-500.0,9.041e-05,2]
[356359469,1742339446633,-500.0,9.041e-05,2]
[356359470,1742339446652,-500.0,9.041e-05,2]
[356359471,1742339446663,-206.15367435,9.145e-05,2]
[356359472,1742339446673,-500.0,9.146e-05,2]
[356359473,1742339446683,-160.0,9.146e-05,2]
[356359474,1742339446693,-417.85479977,9.146e-05,2]
[356359475,1742339446703,-833.90657078,9.146e-05,2]
[356359476,1742339446713,-160.0,9.146e-05,2]
[356359477,1742339446723,-4585.01214166,9.146e-05,2]
[356360790,1742339461585,333.47744564,0.0004547,30]
[356361469,1742339468640,5236.88181372,0.0004547,30]
[356377390,1742339928285,1586.98,0.0004547,45]
[356377403,1742340338939,1971.0,0.00045481,30]
[356377404,1742340350146,-198.59968475,8.736e-05,2]
[356377405,1742340350168,-399.0,8.836e-05,2]
[356377406,1742340350190,-1435.08334443,9.046e-05,2]
[356377408,1742340408108,-177.10636203,9.046e-05,2]
[356377432,1742340632565,-296.49973869,9.046e-05,2]
[356377433,1742340632683,-3429.00138325,9.046e-05,2]
[356377434,1742340632694,-300.0,9.192e-05,2]
[356377435,1742340632703,-12458.93820146,9.193e-05,2]
[356377436,1742340632715,-160.0,9.193e-05,2]
[356377437,1742340632725,-417.85479977,9.193e-05,2]
[356377438,1742340632735,-833.90657078,9.193e-05,2]
[356377439,1742340632746,-160.0,9.193e-05,2]
[356377440,1742340632756,-500.0,9.213e-05,2]
[356377441,1742340632766,-500.0,9.315e-05,2]
[356377442,1742340632776,-500.0,9.315e-05,2]
[356377443,1742340632786,-500.0,9.315e-05,2]
[356377444,1742340632795,-500.0,9.315e-05,2]
[356377445,1742340632806,-204.6271144,9.392e-05,2]
[356377446,1742340632816,-500.0,9.587e-05,2]
[356377447,1742340632826,-500.0,9.587e-05,2]
[356377448,1742340632835,-343.19760425,9.587e-05,2]
[356377449,1742340632846,-324.13338119,9.587e-05,2]
[356377450,1742340632856,-500.0,9.588e-05,2]
[356377451,1742340632866,-156.34,9.589e-05,2]
[356377452,1742340632877,-500.0,9.589e-05,2]
[356377453,1742340632886,-500.0,9.589e-05,2]
[356377454,1742340632897,-500.0,9.589e-05,2]
[356377455,1742340632908,-2024.32506982,9.763e-05,2]
[356377456,1742340632918,-500.0,9.863e-05,2]
[356377457,1742340632927,-426.27,9.863e-05,2]
[356377458,1742340632938,-500.0,9.863e-05,2]
[356377459,1742340632947,-500.0,9.999e-05,2]
[356377460,1742340632957,-275.38284081,0.0001,2]
[356377461,1742340632966,-1174.31602505,0.0001,2]
[356377462,1742340632976,-9889.438744,0.0001,2]
[356377463,1742340632986,-420.0,0.00010112,2]
[356377464,1742340632996,-500.0,0.00010135,2]
[356377465,1742340633007,-500.0,0.00010136,2]
[356377466,1742340633016,-500.0,0.00010136,2]
[356377467,1742340633026,-500.0,0.0001041,2]
[356377468,1742340633036,-491.34,0.0001041,2]
[356377469,1742340633046,-500.0,0.00010684,2]
[356377470,1742340633056,-2200.0,0.0001092,2]
[356377471,1742340633066,-500.0,0.00010958,2]
[356377472,1742340633076,-570.929798,0.00010959,2]
[356377473,1742340633085,-357.0,0.00011123,2]
[356377474,1742340633095,-500.0,0.00011232,2]
[356377475,1742340633104,-500.0,0.00011506,2]
[356377476,1742340633114,-295.04036106,0.00011545,2]
[356377477,1742340633124,-500.0,0.0001178,2]
[356377478,1742340633134,-500.0,0.00012054,2]
[356377479,1742340633144,-500.0,0.00012054,2]
[356377480,1742340633154,-500.0,0.00012054,2]
[356377481,1742340633164,-505.0,0.00012054,2]
[356377482,1742340633174,-150.35,0.00012054,2]
[356377483,1742340633183,-150.35,0.00012054,2]
[356377484,1742340633192,-175.93479225,0.00012054,2]
[356377485,1742340633202,-150.35,0.00012054,2]
[356377486,1742340633215,-155.92816746,0.00012054,2]
[356377487,1742340633224,-165.70767986,0.00012054,2]
[356377488,1742340633234,-152.66991932,0.00012054,2]
[356377489,1742340633243,-500.0,0.00012081,2]
[356377490,1742340633252,-505.0,0.00012081,2]
[356377491,1742340633262,-150.35,0.00012081,2]
[356377492,1742340633271,-150.35,0.00012081,2]
[356377493,1742340633281,-500.0,0.00012109,2]
[356377494,1742340633290,-505.0,0.00012109,2]
[356377495,1742340633300,-150.35,0.00012109,2]
[356377496,1742340633309,-209.2991543,0.00012109,2]
[356377497,1742340633319,-500.0,0.00012136,2]
[356377498,1742340633328,-505.0,0.00012136,2]
[356377499,1742340633338,-150.35,0.00012136,2]
[356377500,1742340633348,-500.0,0.00012164,2]
[356377501,1742340633357,-505.0,0.00012164,2]
[356377502,1742340633366,-152.1906387,0.00012164,2]
[356377503,1742340633376,-293.78,0.0001219,2]
[356377504,1742340633385,-500.0,0.00012191,2]
[356377505,1742340633395,-505.0,0.00012191,2]
[356377506,1742340633405,-999.13031169,0.00012218,2]
[356377507,1742340633414,-505.0,0.00012218,2]
[356377508,1742340633427,-505.0,0.00012246,2]
[356377509,1742340633437,-505.0,0.00012273,2]
[356377510,1742340633447,-505.0,0.00012301,2]
[356377511,1742340633457,-505.0,0.00012328,2]
[356377512,1742340633466,-500.0,0.00012328,2]
[356377513,1742340633476,-505.0,0.00012355,2]
[356377514,1742340633486,-505.0,0.00012383,2]
[356377515,1742340633496,-505.0,0.0001241,2]
[356377516,1742340633506,-505.0,0.00012438,2]
[356377517,1742340633516,-505.0,0.00012465,2]
[356377518,1742340633526,-505.0,0.00012492,2]
[356377519,1742340633536,-505.0,0.0001252,2]
[356377520,1742340633545,-505.0,0.00012547,2]
[356377521,1742340633556,-512.75752555,0.00012575,2]
[356377522,1742340633565,-500.0,0.00012602,2]
[356377523,1742340633575,-500.0,0.00012876,2]
[356377524,1742340633585,-551.31147153,0.00012899,2]
[356377525,1742340633595,-4672.21095709,0.000129,2]
[356377526,1742340633605,-612.40641413,0.00013,2]
[356377527,1742340633615,-1000.0,0.00013,2]
[356377528,1742340633626,-500.0,0.0001315,2]
[356377529,1742340633637,-1411.36163801,0.0001337,5]
[356377530,1742340633649,-500.0,0.00013424,2]
[356377531,1742340633659,-500.0,0.00013573,2]
[356377532,1742340633670,-500.0,0.00013573,2]
[356377533,1742340633680,-500.0,0.00013573,2]
[356377534,1742340633690,-500.0,0.00013573,2]
[356377535,1742340633700,-222.13319735,0.00013573,2]
[356377536,1742340633713,-277.86680265,0.00013573,2]
[356377537,1742340633725,-223.15319735,0.00013573,2]
[356377542,1742340638416,-276.84680265,0.00013573,2]
[356377543,1742340638426,-333.86940855,0.00013573,2]
[356377544,1742340638436,-45.0727888,0.00013573,2]
[356377545,1742340638448,-454.9272112,0.00013573,2]
[356377546,1742340638458,-500.0,0.00013573,2]
[356377547,1742340638467,-500.0,0.00013573,2]
[356377548,1742340638476,-500.0,0.00013573,2]
[356377550,1742340638485,-500.0,0.00013573,2]
[356377551,1742340638495,-500.0,0.00013573,2]
[356377552,1742340638505,-500.0,0.00013573,2]
[356377553,1742340638514,-400.56066154,0.00013573,2]
[356377554,1742340638527,-99.43933846,0.00013573,2]
[356377555,1742340638539,-500.0,0.00013573,2]
[356377556,1742340638549,-500.0,0.00013573,2]
[356377557,1742340638559,-500.0,0.00013573,2]
[356377558,1742340638568,-500.0,0.00013573,2]
[356377559,1742340638578,-500.0,0.00013573,2]
[356377560,1742340638588,-2261.87385161,0.00013573,2]
[356377561,1742340638626,-182.13914839,0.00013573,2]
[356377562,1742340638635,-500.0,0.00013598,2]
[356377563,1742340638645,-491.56209864,0.00013598,2]
[356377564,1742340638655,-485.72327612,0.00013599,2]
[356377570,1742340640805,-1512.81684643,0.00013599,2]
[356377586,1742340643672,-349.99771275,8.836e-05,2]
[356377587,1742340643685,-49.00228725,8.836e-05,2]
[356377588,1742340643695,-399.0,0.00011836,2]
[356377589,1742340643705,-391.58080204,0.00011954,2]
[356377590,1742340643714,-3663.73159914,0.00013599,2]
[356377594,1742340646630,-9876.16391667,0.00013599,2]
[356377596,1742340646642,-3522.10913016,0.00013599,2]
[356377598,1742340646654,-104417.10307,0.00013599,2]
[356377599,1742340646664,-3000.0,0.00013599,2]
[356377600,1742340646675,-151.0,0.000136,2]
[356377601,1742340646684,-500.0,0.00013673,2]
[356377602,1742340646693,-500.0,0.00013673,2]
[356377603,1742340646703,-637.33275232,0.00013697,4]
[356377604,1742340646713,-500.0,0.00013698,2]
[356377605,1742340646723,-500.0,0.00013698,2]
[356377606,1742340646733,-500.0,0.00013698,2]
[356377607,1742340646742,-500.0,0.00013698,2]
[356377608,1742340646754,-500.0,0.00013698,2]
[356377609,1742340646763,-500.0,0.00013698,2]
[356377610,1742340646773,-500.0,0.00013698,2]
[356377611,1742340646782,-500.0,0.00013698,2]
[356377612,1742340646792,-513.1023681,0.00013698,2]
[356377613,1742340646801,-447.79524446,0.00013698,2]
[356377614,1742340646811,-280.93065363,0.00013698,2]
[356377615,1742340646825,-418.72297267,0.00013699,7]
[356377616,1742340646835,-570.929798,0.00013699,2]
[356377617,1742340646844,-500.0,0.00013699,2]
[356377618,1742340646853,-500.0,0.00013699,2]
[356377619,1742340646862,-630.0,0.00013699,2]
[356377620,1742340646872,-4119.380603,0.00013699,2]
[356377621,1742340646882,-201.01350009,0.00013699,2]
[356377622,1742340646891,-142043.8831125,0.00013699,2]
[356377623,1742340646901,-391884.8242842,0.00013699,7]
[356377624,1742340646911,-500.0,0.00013699,2]
[356377625,1742340646920,-15619.0932768,0.00013699,2]
[356377626,1742340646930,-15619.0932768,0.00013699,2]
[356377627,1742340646940,-281.63197911,0.00013699,2]
[356377628,1742340646950,-15619.0932768,0.00013699,2]
[356377629,1742340646959,-15619.0932768,0.00013699,2]
[356377630,1742340646968,-15619.0932768,0.00013699,2]
[356377631,1742340646978,-15619.0932768,0.00013699,2]
[356377632,1742340646987,-15619.0932768,0.00013699,2]
[356377633,1742340646997,-15619.0932768,0.00013699,2]
[356377634,1742340647006,-15619.0932768,0.00013699,2]
[356377635,1742340647016,-15619.0932768,0.00013699,2]
[356377636,1742340647025,-15619.0932768,0.00013699,2]
[356377637,1742340647034,-15619.0932768,0.00013699,2]
[356377638,1742340647044,-110.45687882,0.00013699,2]
[356377639,1742340647170,-391.58080204,0.00012727,2]
[356377640,1742340647181,-7237.21919796,0.00013699,2]
[356377641,1742340691944,56000.0,0.00045481,30]
[356377642,1742340869009,2000.0,0.00045481,120]
[356377643,1742341082037,816.38,0.00045397,120]
[356377644,1742341082300,816.38,0.00045397,120]
[356377645,1742341082559,816.46016082,0.00045397,120]
[356377646,1742341108741,608.23,0.00045397,120]
[356377647,1742341109009,608.23,0.00045397,120]
[356377648,1742341109304,608.3235582,0.00045397,120]
[356377649,1742341154907,669.76,0.00045397,120]
[356377650,1742341155157,669.76,0.00045397,120]
[356377651,1742341155765,669.94394074,0.00045397,120]
[356377652,1742341446164,513.0,0.00045404,120]
[356377653,1742341549090,-954.23866942,8.946e-05,2]
[356377654,1742341641095,-903.60576325,8.946e-05,2]
[356377661,1742341774850,1000.0,0.00045404,120]
[356377662,1742341775146,1000.0,0.00045404,120]
[356377663,1742341775393,1000.0,0.00045404,120]
[356377664,1742341775670,1000.0,0.00045404,120]
[356377665,1742341776076,1000.0,0.00045404,120]
[356377666,1742341776207,1000.0,0.00045404,120]
[356377679,1742341832743,-160.53246295,8.857e-05,2]
[356377680,1742341832752,-3479.84639573,8.946e-05,2]
[356377681,1742341832762,-300.0,9.225e-05,2]
[356377682,1742341832771,-3030.67105945,9.226e-05,2]
[356377699,1742341840894,-160.0,9.226e-05,2]
[356377700,1742341840904,-171.0,9.226e-05,2]
[356377726,1742341843887,-833.90657078,9.226e-05,2]
[356377727,1742341843898,-160.0,9.226e-05,2]
[356377728,1742341843908,-187.75761627,9.264e-05,2]
[356377729,1742341843937,-211.24238373,9.264e-05,2]
[356377730,1742341843947,-284.212,0.0001,2]
[356377731,1742341843956,-405.1077142,0.0001,2]
[356377732,1742341843969,-9154.68307157,0.0001,2]
[356377733,1742341843979,-420.0,0.00010148,2]
[356377734,1742341843988,-407.806998,0.00010959,2]
[356377735,1742341843997,-9559.79078575,0.00011141,2]
[356377736,1742341844007,-180.0,0.00011163,2]
[356377737,1742341844017,-399.0,0.00012264,2]
[356377738,1742341844026,-1701.0726586,0.00012383,2]
[356377739,1742341844038,-3292.8825748,0.00012383,2]
[356377740,1742341844049,-4565.83555235,0.00012383,2]
[356377741,1742341844059,-4088.18458748,0.000129,2]
[356377742,1742341844069,-3000.0,0.00013599,2]
[356377743,1742341844078,-1775.67100936,0.00013599,2]
[356377744,1742341844088,-9559.79078575,0.00013624,2]
[356377745,1742341844097,-385.91803007,0.00013672,2]
[356377746,1742341844107,-500.0,0.00013673,2]
[356377747,1742341844117,-500.0,0.00013673,2]
[356377748,1742341844127,-500.0,0.00013673,2]
[356377749,1742341844137,-500.0,0.00013673,2]
[356377750,1742341844147,-500.0,0.00013673,2]
[356377751,1742341844157,-500.0,0.00013673,2]
[356377752,1742341844167,-500.0,0.00013673,2]
[356377753,1742341844177,-500.0,0.00013673,2]
[356377754,1742341844187,-500.0,0.00013673,2]
[356377756,1742341844196,-500.0,0.00013673,2]
[356377757,1742341844206,-500.0,0.00013673,2]
[356377758,1742341844216,-500.0,0.00013673,2]
[356377759,1742341844226,-500.0,0.00013673,2]
[356377760,1742341844235,-500.0,0.00013673,2]
[356377761,1742341844245,-500.0,0.00013673,2]
[356377762,1742341844255,-521.11926103,0.00013673,2]
[356377763,1742341844264,-175.68205576,0.00013673,2]
[356378200,1742342121184,9287.90314706,0.00045398,120]
[356378201,1742342214229,979.99,0.00045398,120]
[356378202,1742342214500,979.99,0.00045398,120]
[356378203,1742342214763,980.177218,0.00045398,120]
[356378204,1742342314629,2083.33,0.00045398,120]
[356378205,1742342314910,2083.33,0.00045398,120]
[356378206,1742342315222,2083.41,0.00045398,120]
[356378207,1742342389745,1872.61,0.00045398,120]
[356378208,1742342390021,1872.61,0.00045398,120]
[356378209,1742342390275,1872.77897193,0.00045398,120]
[356378210,1742342538499,714.33,0.00045398,120]
[356378211,1742342538753,714.33,0.00045398,120]
[356378212,1742342539037,714.39,0.00045398,120]
[356378213,1742342558077,16850.32,0.00045398,30]
[356378214,1742342558168,16850.32,0.00045398,30]
[356378215,1742342558451,16850.38081115,0.00045398,30]
[356378216,1742342564373,532.2,0.00045398,120]
[356378217,1742342564637,532.2,0.00045398,120]
[356378218,1742342564896,532.23,0.00045398,120]
[356378219,1742342589192,3000.0,0.00045398,31]
[356378220,1742342610012,586.04,0.00045398,120]
[356378221,1742342610266,586.04,0.00045398,120]
[356378222,1742342610529,586.04,0.00045398,120]
[356378223,1742342668235,2000.0,0.00045398,120]
[356378224,1742342851132,-628.7875736,8.584e-05,2]
[356378225,1742342851157,-270.71815318,9.126e-05,2]
[356378226,1742342913296,857.52,0.00045398,120]
[356378227,1742343012964,1823.0,0.00045398,120]
[356378228,1742343027826,544.48,8e-05,2]
[356378697,1742343037819,-1521.36559119,9.126e-05,2]
[356378727,1742343042912,-3545.60708403,9.126e-05,2]
[356378728,1742343042922,-500.0,9.126e-05,2]
[356378729,1742343042932,-300.0,9.226e-05,2]
[356378730,1742343042941,-833.90657078,9.227e-05,2]
[356378731,1742343042950,-160.0,9.227e-05,2]
[356378732,1742343042960,-160.0,9.227e-05,2]
[356378733,1742343042969,-417.85479977,9.227e-05,2]
[356378734,1742343042980,-12458.93820146,9.247e-05,2]
[356378735,1742343042992,-174.08975372,9.263e-05,2]
[356378736,1742343043002,-399.0,9.324e-05,2]
[356378737,1742343043011,-227.369,0.0001,2]
[356378738,1742343043020,-8285.15201451,0.0001,2]
[356378739,1742343043031,-349.548855,0.00010959,2]
[356378740,1742343043040,-399.0,0.00012324,2]
[356378741,1742343043050,-3577.16151401,0.000129,2]
[356378742,1742343043059,-2484.13250693,0.00013599,2]
[356378752,1742343085943,1638.62,0.00045398,120]
[356378753,1742343110950,1000.0,0.00045398,120]
[356378754,1742343117648,7870.29070921,0.00045398,120]
[356378755,1742343157285,1000.0,0.00045398,120]
[356378756,1742343191415,593.39,0.00045398,120]
[356378757,1742343191894,1000.0,0.00045398,120]
[356378758,1742343204191,1000.0,0.00045398,120]
[356378759,1742343232031,1000.0,0.00045398,120]
[356378760,1742343240465,1000.0,0.00045398,120]
[356378761,1742343256829,1533.424,0.00045398,120]
[356378762,1742343263723,14744.03,0.00045398,30]
[356378763,1742343285773,679.86,0.00045398,120]
[356378764,1742343291974,441.24955025,0.00045398,30]
[356378765,1742343318287,1000.0,0.00045398,120]
[356378766,1742343331304,1140.06,0.00045398,120]
[356378767,1742343334247,1000.0,0.00045398,120]
[356378768,1742343337914,1000.0,0.00045398,120]
[356378769,1742343376799,1000.0,0.00045398,120]
[356378770,1742343390939,300000.0,0.00045398,30]
[356378771,1742343424857,1000.0,0.00045398,120]
[356378772,1742343463245,137750.4212,0.00045508,120]
[356378773,1742343497275,2473.32,0.00045508,120]
[356378774,1742343497551,757.89748092,0.00045508,120]
[356378775,1742343944131,-198.59968475,8.926e-05,2]
[356378776,1742343944153,-1726.23890845,9.026e-05,2]
[356378777,1742343971567,150.0,0.0001517,120]
[356378778,1742344019098,-177.10636203,9.026e-05,2]
[356378790,1742344221402,139126.0317768,0.00014,30]
[356378819,1742344232159,-3092.94821643,8.9e-05,2]
[356378820,1742344232169,-3434.34555792,9.026e-05,2]
[356378821,1742344232178,-160.0,9.25e-05,2]
[356378822,1742344232188,-417.85479977,9.25e-05,2]
[356378823,1742344232198,-250.0,9.398e-05,2]
[356378824,1742344232207,-899.0501672,9.411e-05,2]
[356378825,1742344232217,-250.0,9.771e-05,2]
[356378826,1742344232226,-399.0,9.771e-05,2]
[356378827,1742344232235,-300.0,9.999e-05,2]
[356378828,1742344232245,-10746.69097642,0.0001,2]
[356378829,1742344232255,-349.0,0.0001038,2]
[356378830,1742344232264,-500.0,0.00010685,2]
[356378831,1742344232273,-1200.0,0.00010952,2]
[356378832,1742344232282,-662.259455,0.00010959,2]
[356378833,1742344232292,-2444.75,0.00010959,2]
[356378834,1742344232302,-818.74,0.00010959,2]
[356378835,1742344232311,-394.84,0.00010959,2]
[356378836,1742344232321,-4028.13,0.00010959,2]
[356378837,1742344232331,-3356.77,0.00010959,2]
[356378838,1742344232341,-2797.31,0.00010959,2]
[356378839,1742344232351,-2331.09,0.00010959,2]
[356378840,1742344232360,-1942.58,0.00010959,2]
[356378841,1742344232370,-1618.81,0.00010959,2]
[356378842,1742344232380,-420.0,0.00010999,2]
[356378843,1742344232390,-500.0,0.00011,2]
[356378844,1742344232399,-500.0,0.00011,2]
[356378845,1742344232409,-587.0,0.00012099,2]
[356378846,1742344232418,-7910.1509617,0.00012253,2]
[356378847,1742344232428,-833.90657078,0.00012253,2]
[356378848,1742344232438,-160.0,0.00012253,2]
[356378849,1742344232450,-399.0,0.00012771,2]
[356378850,1742344232461,-300.11835248,0.00012886,2]
[356378851,1742344232471,-176.2305196,0.00013078,2]
[356378852,1742344232481,-307.0344214,0.00013078,2]
[356378853,1742344232491,-153.0,0.00013078,2]
[356378854,1742344232501,-153.0,0.00013078,2]
[356378855,1742344232511,-270.14262105,0.00013299,2]
[356378856,1742344232520,-16212.7045246,0.000133,2]
[356378857,1742344232530,-823.0,0.00013309,2]
[356378858,1742344232540,-192.23432948,0.00013499,2]
[356378859,1742344232550,-192.23432947,0.00013524,2]
[356378860,1742344232560,-1200.0,0.0001354,7]
[356378861,1742344232569,-192.23432947,0.00013549,2]
[356378862,1742344232579,-42057.76077145,0.00013562,2]
[356378875,1742344237841,-386.01728257,0.00010959,2]
[356378876,1742344237854,-892.31656702,0.00010959,2]
[356378877,1742344237897,-70.67615041,0.00010959,2]
[356378878,1742344237907,-8942.98328468,0.00013562,2]
[356378879,1742344237918,-904.4,0.00013562,2]
[356378881,1742344237930,-674.62973335,0.00013562,2]
[356378902,1742344242946,-2194.329703,0.00013288,2]
[356378903,1742344242956,-16207.05224928,0.00013562,2]
[356378904,1742344243058,-28684.84397381,0.00013562,2]
[356378905,1742344243068,-1236.2242959,0.00013562,2]
[356378924,1742345133137,-399.0,0.00010032,2]
[356378925,1742345133158,-160.0,0.00010617,2]
[356378926,1742345133179,-417.85479977,0.00010643,2]
[356378927,1742345133200,-74.44386203,0.00010643,2]
[356378928,1742345225095,-833.90657078,0.00010617,2]
[356378929,1742345225117,-69.28918882,0.00010617,2]
[356378975,1742345443351,-399.0,0.00010032,2]
[356378977,1742345443361,-200.00223955,0.0001049,2]
[356378978,1742345443372,-200.00223954,0.00010517,2]